[Event "56th Biel Festival MTO 2023"]
[White "Aarav Dengla"]
[Black "Wang,Chen"]
[Site "Biel"]
[Round "2.14"]
[Annotator "ChessBase"]
[Result "1/2-1/2"]
[Date "2023.07.19"]
[WhiteElo "2343"]
[BlackElo "2477"]
[PlyCount "46"]
[TimeControl "60"]

1. e4 {[%emt 0:0:0]} c5 {[%emt 0:0:0]} 2. Nf3 {[%emt 0:0:0]} e6 {[%emt 0:0:0]} 3. d4 {[%emt 0:0:0]} cxd4 {[%emt 0:0:0]} 4. Nxd4 {[%emt 0:0:0]} Nc6 {[%emt 0:0:0]} 5. Nc3 {[%emt 0:0:0]} a6 {[%emt 0:0:0]} 6. Be3 {[%emt 0:0:0]} Nf6 {[%emt 0:0:0]} 7. Nxc6 {[%emt 0:0:0]} bxc6 {[%emt 0:0:0]} 8. e5 {[%emt 0:0:54]} Nd5 {[%emt 0:0:0]} 9. Nxd5 {[%emt 0:4:8]} cxd5 {[%emt 0:0:0]} 10. Bd3 {[%emt 0:5:38]} Qc7 {[%emt 0:0:0]} 11. Bd4 {[%emt 0:2:4]} Bc5 {[%emt 0:10:17]} 12. Qg4 {[%emt 0:6:15]} O-O {[%emt 0:10:27]} 13. Qh4 {[%emt 0:8:43]} g6 {[%emt 0:6:29]} 14. Bxc5 {[%emt 0:6:46]} Qxc5 {[%emt 0:0:7]} 15. O-O {[%emt 0:1:20]} d6 {[%emt 0:13:22]} 16. Qe7 {[%emt 0:6:12]} Ra7 {[%emt 0:0:16]} 17. Qxd6 {[%emt 0:0:53]} Qxd6 {[%emt 0:0:9]} 18. exd6 {[%emt 0:0:2]} Rd8 {[%emt 0:0:16]} 19. c4 {[%emt 0:1:30]} dxc4 {[%emt 0:1:8]} 20. Bxc4 {[%emt 0:0:9]} Rxd6 {[%emt 0:0:47]} 21. Rfd1 {[%emt 0:8:13]} Rad7 {[%emt 0:0:22]} 22. Rxd6 {[%emt 0:1:51]} Rxd6 {[%emt 0:0:5]} 23. b4 {[%emt 0:3:8]} Bd7 {[%emt 0:4:53]} 1/2-1/2

[Event "56th Biel Festival MTO 2023"]
[White "Nie,Xinyang"]
[Black "Rathanvel,V S"]
[Site "Biel"]
[Round "2.15"]
[Annotator "ChessBase"]
[Result "1/2-1/2"]
[Date "2023.07.19"]
[WhiteElo "2288"]
[BlackElo "2463"]
[PlyCount "43"]
[TimeControl "60"]

1. d4 {[%emt 0:0:0]} Nf6 {[%emt 0:0:0]} 2. c4 {[%emt 0:0:0]} e6 {[%emt 0:0:0]} 3. Nc3 {[%emt 0:0:0]} Bb4 {[%emt 0:0:0]} 4. e3 {[%emt 0:0:0]} O-O {[%emt 0:0:0]} 5. Bd3 {[%emt 0:0:0]} d5 {[%emt 0:0:0]} 6. Nge2 {[%emt 0:0:0]} dxc4 {[%emt 0:0:0]} 7. Bxc4 {[%emt 0:0:0]} c5 {[%emt 0:0:0]} 8. O-O {[%emt 0:0:0]} cxd4 {[%emt 0:0:0]} 9. exd4 {[%emt 0:0:0]} Nc6 {[%emt 0:0:0]} 10. Bg5 {[%emt 0:0:0]} h6 {[%emt 0:0:0]} 11. Bh4 {[%emt 0:0:0]} Be7 {[%emt 0:0:0]} 12. a3 {[%emt 0:0:0]} Nh5 {[%emt 0:13:40]} 13. Bxe7 {[%emt 0:0:0]} Nxe7 {[%emt 0:0:34]} 14. d5 {[%emt 0:6:1]} exd5 {[%emt 0:1:28]} 15. Nxd5 {[%emt 0:0:4]} Be6 {[%emt 0:12:5]} 16. Nec3 {[%emt 0:2:9]} Nxd5 {[%emt 0:13:55]} 17. Bxd5 {[%emt 0:0:4]} Bxd5 {[%emt 0:9:3]} 18. Qxd5 {[%emt 0:0:7]} Qxd5 {[%emt 0:0:25]} 19. Nxd5 {[%emt 0:0:4]} Rfd8 {[%emt 0:2:57]} 20. Rfd1 {[%emt 0:2:45]} Rd7 {[%emt 0:0:38]} 21. Nc3 {[%emt 0:7:6]} Rad8 {[%emt 0:0:46]} 22. Rxd7 {[%emt 0:0:45]} 1/2-1/2

[Event "56th Biel Festival MTO 2023"]
[White "Chasin,Nico"]
[Black "Sutter,Oliver"]
[Site "Biel"]
[Round "2.16"]
[Annotator "ChessBase"]
[Result "1-0"]
[Date "2023.07.19"]
[WhiteElo "2455"]
[BlackElo "2313"]
[PlyCount "99"]
[TimeControl "60"]

1. e4 {[%emt 0:0:0]} c6 {[%emt 0:0:0]} 2. Nc3 {[%emt 0:0:0]} d5 {[%emt 0:0:0]} 3. Nf3 {[%emt 0:0:0]} dxe4 {[%emt 0:0:0]} 4. Nxe4 {[%emt 0:0:0]} Nf6 {[%emt 0:0:0]} 5. Qe2 {[%emt 0:0:0]} Nxe4 {[%emt 0:0:0]} 6. Qxe4 {[%emt 0:0:0]} Qd5 {[%emt 0:0:0]} 7. Qf4 {[%emt 0:0:0]} Qf5 {[%emt 0:0:0]} 8. Qe3 {[%emt 0:0:0]} Qe6 {[%emt 0:11:7]} 9. d4 {[%emt 0:0:0]} Qxe3+ {[%emt 0:0:24]} 10. Bxe3 {[%emt 0:0:0]} Bf5 {[%emt 0:1:38]} 11. O-O-O {[%emt 0:0:0]} e6 {[%emt 0:0:22]} 12. Nh4 {[%emt 0:0:0]} Bg4 {[%emt 0:3:11]} 13. f3 {[%emt 0:0:0]} Bh5 {[%emt 0:1:32]} 14. g4 {[%emt 0:0:0]} Bg6 {[%emt 0:4:29]} 15. c4 {[%emt 0:31:55]} Nd7 {[%emt 0:4:50]} 16. Bg2 {[%emt 0:4:24]} Nb6 {[%emt 0:3:16]} 17. b3 {[%emt 0:1:52]} Ba3+ {[%emt 0:5:59]} 18. Kd2 {[%emt 0:0:35]} Nd7 {[%emt 0:18:4]} 19. Ke2 {[%emt 0:4:59]} a5 {[%emt 0:16:15]} 20. f4 {[%emt 0:2:15]} Nf6 {[%emt 0:4:35]} 21. Nxg6 {[%emt 0:2:10]} hxg6 {[%emt 0:0:4]} 22. g5 {[%emt 0:0:6]} Ng8 {[%emt 0:8:9]} 23. d5 {[%emt 0:0:33]} exd5 {[%emt 0:0:8]} 24. cxd5 {[%emt 0:0:8]} Ne7 {[%emt 0:0:9]} 25. d6 {[%emt 0:9:33]} Nd5 {[%emt 0:0:46]} 26. Bxd5 {[%emt 0:0:12]} cxd5 {[%emt 0:0:3]} 27. Rxd5 {[%emt 0:0:2]} Kd7 {[%emt 0:0:20]} 28. Rb5 {[%emt 0:0:21]} Bxd6 {[%emt 0:4:4]} 29. Rxb7+ {[%emt 0:1:54]} Ke6 {[%emt 0:0:7]} 30. Rb6 {[%emt 0:0:7]} Rab8 {[%emt 0:0:55]} 31. Ra6 {[%emt 0:0:11]} Ra8 {[%emt 0:0:14]} 32. Ba7 {[%emt 0:2:14]} Kf5 {[%emt 0:4:40]} 33. Rxa5+ {[%emt 0:1:0]} Ke4 {[%emt 0:0:45]} 34. h4 {[%emt 0:11:39]} Rhc8 {[%emt 0:3:47]} 35. Re1 {[%emt 0:0:6]} Kxf4 {[%emt 0:6:57]} 36. Rf1+ {[%emt 0:0:47]} Kg3 {[%emt 0:0:22]} 37. Ra4 {[%emt 0:2:45]} Re8+ {[%emt 0:0:28]} 38. Kd3 {[%emt 0:2:15]} Rad8 {[%emt 0:0:34]} 39. Rxf7 {[%emt 0:9:12]} Bc5+ {[%emt 0:1:3]} 40. Kc4 {[%emt 0:1:28]} Bxa7 {[%emt 0:0:21]} 41. Raxa7 {[%emt 0:30:1]} Kxh4 {[%emt 0:0:0]} 42. Rxg7 {[%emt 0:0:0]} Re4+ {[%emt 0:0:0]} 43. Kc3 {[%emt 0:0:0]} Re3+ {[%emt 0:0:0]} 44. Kb4 {[%emt 0:0:0]} Re4+ {[%emt 0:0:0]} 45. Ka3 {[%emt 0:0:0]} Rd6 {[%emt 0:0:0]} 46. Ra4 {[%emt 0:0:0]} Rxa4+ {[%emt 0:0:0]} 47. Kxa4 {[%emt 0:0:0]} Kxg5 {[%emt 0:0:0]} 48. b4 {[%emt 0:0:0]} Kf6 {[%emt 0:0:0]} 49. Rg8 {[%emt 0:0:0]} g5 {[%emt 0:0:0]} 50. b5 {[%emt 0:0:0]} 1-0

[Event "56th Biel Festival MTO 2023"]
[White "Huang,Renjie"]
[Black "Schnepp,Gunnar"]
[Site "Biel"]
[Round "2.17"]
[Annotator "RC"]
[Result "1-0"]
[Date "2023.07.19"]
[WhiteElo "2445"]
[BlackElo "2278"]
[PlyCount "33"]
[TimeControl "60"]

1. e4 {[%emt 0:0:0]} c5 {[%emt 0:0:0]} 2. Nf3 {[%emt 0:0:0]} d6 {[%emt 0:0:0]} 3. d4 {[%emt 0:0:0]} cxd4 {[%emt 0:0:0]} 4. Nxd4 {[%emt 0:0:0]} Nf6 {[%emt 0:0:0]} 5. Nc3 {[%emt 0:0:0]} a6 {[%emt 0:0:0]} 6. Bd3 {[%emt 0:0:0]} g6 {[%emt 0:0:0]} 7. f3 {[%emt 0:0:0]} Bg7 {[%emt 0:0:0]} 8. Be3 {[%emt 0:0:0]} Nc6 {[%emt 0:0:0]} 9. Qd2 {[%emt 0:0:0]} O-O {[%emt 0:0:0]} 10. O-O-O {[%emt 0:0:0]} d5 {[%emt 0:0:0]} 11. Nxc6 {[%emt 0:0:0]} bxc6 {[%emt 0:0:0]} 12. Bc4 {[%emt 0:0:0]} e6 {[%emt 0:0:0]} 13. Bb3 {[%emt 0:0:0]} Qc7 {[%emt 0:0:0]} 14. h4 {[%emt 0:0:0]} dxe4 {[%emt 0:0:50]} 15. h5 {[%emt 0:0:37]} exf3 {[%emt 0:2:20]} 16. hxg6 {[%emt 0:0:40]} hxg6 {[%emt 0:0:17]} 17. Bh6 {[%emt 0:4:3]} 1-0

[Event "56th Biel Festival MTO 2023"]
[White "Toktomushev,Teimur"]
[Black "Sanchez Alvarez,Roberto Carlos"]
[Site "Biel"]
[Round "2.18"]
[Annotator "RC"]
[Result "1-0"]
[Date "2023.07.19"]
[WhiteElo "2206"]
[BlackElo "2444"]
[PlyCount "67"]
[TimeControl "60"]

1. d4 {[%emt 0:0:0]} Nf6 {[%emt 0:0:0]} 2. c4 {[%emt 0:0:0]} e6 {[%emt 0:0:0]} 3. Nf3 {[%emt 0:0:0]} b6 {[%emt 0:0:0]} 4. g3 {[%emt 0:0:0]} Ba6 {[%emt 0:0:0]} 5. b3 {[%emt 0:0:0]} Bb4+ {[%emt 0:0:0]} 6. Bd2 {[%emt 0:0:0]} Be7 {[%emt 0:0:0]} 7. Bg2 {[%emt 0:0:0]} O-O {[%emt 0:0:0]} 8. O-O {[%emt 0:0:0]} d5 {[%emt 0:0:0]} 9. Bc3 {[%emt 0:0:0]} c5 {[%emt 0:0:0]} 10. Ne5 {[%emt 0:26:25]} Bb7 {[%emt 0:0:0]} 11. dxc5 {[%emt 0:5:30]} Bxc5 {[%emt 0:5:51]} 12. Bb2 {[%emt 0:13:53]} Qc7 {[%emt 0:11:59]} 13. Nd3 {[%emt 0:6:37]} Be7 {[%emt 0:1:57]} 14. Nd2 {[%emt 0:1:19]} dxc4 {[%emt 0:2:14]} 15. Nxc4 {[%emt 0:0:25]} Bxg2 {[%emt 0:1:54]} 16. Kxg2 {[%emt 0:0:4]} Rd8 {[%emt 0:5:56]} 17. Qd2 {[%emt 0:11:1]} Qb7+ {[%emt 0:5:8]} 18. Kg1 {[%emt 0:1:2]} Ne4 {[%emt 0:13:23]} 19. Qe3 {[%emt 0:4:44]} Nd7 {[%emt 0:1:19]} 20. Qf3 {[%emt 0:7:54]} f6 {[%emt 0:6:33]} 21. Nf4 {[%emt 0:18:33]} Nf8 {[%emt 0:2:42]} 22. Rad1 {[%emt 0:2:32]} Rab8 {[%emt 0:10:57]} 23. Qg4 {[%emt 0:1:27]} e5 {[%emt 0:0:53]} 24. Ne6 {[%emt 0:0:28]} Nxe6 {[%emt 0:0:11]} 25. Qxe6+ {[%emt 0:0:1]} Kf8 {[%emt 0:1:43]} 26. h4 {[%emt 0:1:2]} Bc5 {[%emt 0:11:1]} 27. e3 {[%emt 0:0:27]} b5 {[%emt 0:0:39]} 28. Na5 {[%emt 0:0:33]} Qb6 {[%emt 0:0:2]} 29. Nc6 {[%emt 0:0:32]} Rxd1 {[%emt 0:13:53]} 30. Rxd1 {[%emt 0:0:3]} Re8 {[%emt 0:0:2]} 31. Qd5 {[%emt 0:0:28]} Nxf2 {[%emt 0:4:23]} 32. Kxf2 {[%emt 0:0:7]} Rc8 {[%emt 0:0:15]} 33. Nd8 {[%emt 0:0:52]} Bxe3+ {[%emt 0:1:44]} 34. Kf3 {[%emt 0:0:51]} 1-0

[Event "56th Biel Festival MTO 2023"]
[White "Rotunno,Flavio"]
[Black "Materia,Marco"]
[Site "Biel"]
[Round "2.19"]
[Annotator "ChessBase"]
[Result "1-0"]
[Date "2023.07.19"]
[WhiteElo "2005"]
[BlackElo "2436"]
[PlyCount "132"]
[TimeControl "60"]

1. d4 {[%emt 0:0:0]} Nf6 {[%emt 0:0:0]} 2. c4 {[%emt 0:0:0]} e6 {[%emt 0:0:0]} 3. Nf3 {[%emt 0:0:0]} d5 {[%emt 0:0:0]} 4. Nc3 {[%emt 0:0:0]} dxc4 {[%emt 0:0:0]} 5. Qa4+ {[%emt 0:0:0]} Nc6 {[%emt 0:0:0]} 6. e3 {[%emt 0:7:57]} Bd7 {[%emt 0:0:0]} 7. Qxc4 {[%emt 0:5:24]} Na5 {[%emt 0:6:36]} 8. Qd3 {[%emt 0:5:6]} c5 {[%emt 0:1:21]} 9. Be2 {[%emt 0:10:19]} Nc6 {[%emt 0:5:15]} 10. a3 {[%emt 0:10:2]} cxd4 {[%emt 0:4:41]} 11. exd4 {[%emt 0:2:0]} Be7 {[%emt 0:2:54]} 12. O-O {[%emt 0:2:41]} O-O {[%emt 0:0:58]} 13. Bf4 {[%emt 0:12:4]} Be8 {[%emt 0:9:59]} 14. Rac1 {[%emt 0:6:50]} Nd5 {[%emt 0:4:27]} 15. Nxd5 {[%emt 0:5:3]} Qxd5 {[%emt 0:0:40]} 16. Rfd1 {[%emt 0:0:35]} f6 {[%emt 0:7:15]} 17. Qe3 {[%emt 0:13:57]} Bf7 {[%emt 0:1:11]} 18. Bc4 {[%emt 0:1:16]} Qd7 {[%emt 0:0:28]} 19. Re1 {[%emt 0:10:3]} Nd8 {[%emt 0:5:30]} 20. Bb3 {[%emt 0:1:35]} Bd6 {[%emt 0:0:43]} 21. Bxd6 {[%emt 0:2:44]} Qxd6 {[%emt 0:1:51]} 22. Qc3 {[%emt 0:1:30]} Nc6 {[%emt 0:1:5]} 23. Rcd1 {[%emt 0:1:4]} Rac8 {[%emt 0:4:41]} 24. Qe3 {[%emt 0:1:42]} Rfe8 {[%emt 0:0:13]} 25. h3 {[%emt 0:0:10]} Kh8 {[%emt 0:2:32]} 26. Ba2 {[%emt 0:0:48]} a6 {[%emt 0:2:16]} 27. Kh1 {[%emt 0:0:36]} Ne7 {[%emt 0:0:38]} 28. Qb3 {[%emt 0:0:27]} Rc7 {[%emt 0:2:51]} 29. Qd3 {[%emt 0:0:30]} Bg6 {[%emt 0:0:58]} 30. Qf1 {[%emt 0:0:29]} Nd5 {[%emt 0:0:32]} 31. Rc1 {[%emt 0:0:4]} Rec8 {[%emt 0:0:34]} 32. Rxc7 {[%emt 0:0:34]} Rxc7 {[%emt 0:0:1]} 33. Rc1 {[%emt 0:0:8]} Kg8 {[%emt 0:1:26]} 34. Rxc7 {[%emt 0:0:57]} Nxc7 {[%emt 0:0:17]} 35. Qe2 {[%emt 0:0:48]} Kf8 {[%emt 0:0:44]} 36. Kg1 {[%emt 0:0:4]} Qc6 {[%emt 0:0:53]} 37. Qc4 {[%emt 0:0:38]} Be4 {[%emt 0:2:43]} 38. Qxc6 {[%emt 0:0:35]} Bxc6 {[%emt 0:0:1]} 39. Nd2 {[%emt 0:0:45]} Ke7 {[%emt 0:0:7]} 40. f3 {[%emt 0:0:22]} Nb5 {[%emt 0:0:22]} 41. Bb1 {[%emt 0:30:34]} Nxd4 {[%emt 0:37:35]} 42. Kf2 {[%emt 0:0:0]} h6 {[%emt 0:0:0]} 43. Ke3 {[%emt 0:0:0]} e5 {[%emt 0:0:0]} 44. h4 {[%emt 0:0:0]} Ke6 {[%emt 0:0:0]} 45. g3 {[%emt 0:0:0]} Nf5+ {[%emt 0:0:0]} 46. Kf2 {[%emt 0:0:0]} Bd5 {[%emt 0:0:0]} 47. Bd3 {[%emt 0:0:0]} Nd6 {[%emt 0:0:0]} 48. Ke3 {[%emt 0:0:0]} a5 {[%emt 0:0:0]} 49. Be2 {[%emt 0:0:16]} b6 {[%emt 0:0:0]} 50. Bd3 {[%emt 0:0:22]} Kd7 {[%emt 0:0:0]} 51. Be2 {[%emt 0:2:8]} Kc6 {[%emt 0:0:0]} 52. Bd3 {[%emt 0:2:37]} Kc5 {[%emt 0:0:0]} 53. f4 {[%emt 0:0:41]} b5 {[%emt 0:0:0]} 54. fxe5 {[%emt 0:0:20]} fxe5 {[%emt 0:0:0]} 55. Bc2 {[%emt 0:0:38]} b4 {[%emt 0:2:20]} 56. axb4+ {[%emt 0:0:17]} Kxb4 {[%emt 0:0:7]} 57. Bb1 {[%emt 0:0:46]} Nb7 {[%emt 0:2:8]} 58. g4 {[%emt 0:0:30]} Nc5 {[%emt 0:0:6]} 59. g5 {[%emt 0:0:26]} hxg5 {[%emt 0:0:16]} 60. hxg5 {[%emt 0:0:4]} Na4 {[%emt 0:0:7]} 61. Nf3 {[%emt 0:0:51]} Nxb2 {[%emt 0:3:19]} 62. Nxe5 {[%emt 0:0:9]} Kc3 {[%emt 0:0:10]} 63. Kf4 {[%emt 0:0:0]} a4 {[%emt 0:0:0]} 64. Kf5 {[%emt 0:0:0]} a3 {[%emt 0:0:0]} 65. Nd7 {[%emt 0:0:0]} Na4 {[%emt 0:0:0]} 66. Nf6 {[%emt 0:0:0]} gxf6 {[%emt 0:0:0]} 1-0

[Event "56th Biel Festival MTO 2023"]
[White "Licznerski,Lukasz"]
[Black "Foerster-Yialamas,Lucas"]
[Site "Biel"]
[Round "2.20"]
[Annotator "RC"]
[Result "1-0"]
[Date "2023.07.19"]
[WhiteElo "2430"]
[BlackElo "2157"]
[PlyCount "59"]
[TimeControl "60"]

1. e4 {[%emt 0:0:0]} e5 {[%emt 0:0:0]} 2. Nc3 {[%emt 0:0:0]} Nf6 {[%emt 0:0:0]} 3. Nf3 {[%emt 0:0:0]} Nc6 {[%emt 0:0:0]} 4. Bb5 {[%emt 0:0:0]} Bc5 {[%emt 0:0:0]} 5. O-O {[%emt 0:0:3]} O-O {[%emt 0:0:0]} 6. d3 {[%emt 0:2:13]} d6 {[%emt 0:0:0]} 7. Bg5 {[%emt 0:12:21]} Bg4 {[%emt 0:0:0]} 8. h3 {[%emt 0:1:51]} Bxf3 {[%emt 0:0:0]} 9. Qxf3 {[%emt 0:0:2]} Nd4 {[%emt 0:0:0]} 10. Qd1 {[%emt 0:0:31]} c6 {[%emt 0:0:0]} 11. Ba4 {[%emt 0:2:56]} h6 {[%emt 0:0:0]} 12. Bh4 {[%emt 0:1:19]} g5 {[%emt 0:1:54]} 13. Bg3 {[%emt 0:0:5]} a5 {[%emt 0:3:7]} 14. a3 {[%emt 0:1:57]} b5 {[%emt 0:2:41]} 15. Bb3 {[%emt 0:1:15]} b4 {[%emt 0:1:2]} 16. Ne2 {[%emt 0:8:51]} bxa3 {[%emt 0:5:35]} 17. bxa3 {[%emt 0:8:18]} a4 {[%emt 0:0:20]} 18. Ba2 {[%emt 0:1:33]} Qa5 {[%emt 0:1:26]} 19. Nxd4 {[%emt 0:15:8]} Bxd4 {[%emt 0:0:11]} 20. Qf3 {[%emt 0:0:12]} Kg7 {[%emt 0:0:48]} 21. Rab1 {[%emt 0:0:40]} Rab8 {[%emt 0:0:28]} 22. h4 {[%emt 0:12:6]} Qd2 {[%emt 0:4:37]} 23. Qf5 {[%emt 0:12:52]} Rxb1 {[%emt 0:9:58]} 24. Rxb1 {[%emt 0:1:12]} Nh5 {[%emt 0:15:16]} 25. Rb7 {[%emt 0:1:46]} Qc1+ {[%emt 0:0:59]} 26. Kh2 {[%emt 0:0:13]} Nf6 {[%emt 0:0:29]} 27. h5 {[%emt 0:1:9]} Ng4+ {[%emt 0:5:34]} 28. Qxg4 {[%emt 0:3:42]} Bxf2 {[%emt 0:0:21]} 29. Bxf2 {[%emt 0:0:48]} Qxc2 {[%emt 0:2:4]} 30. Qf5 {[%emt 0:1:6]} 1-0

[Event "56th Biel Festival MTO 2023"]
[White "Erdos,Viktor"]
[Black "Matsumura,Cocoro"]
[Site "Biel"]
[Round "2.21"]
[Annotator "RC"]
[Result "1-0"]
[Date "2023.07.19"]
[WhiteElo "2571"]
[BlackElo "2081"]
[PlyCount "79"]
[TimeControl "60"]

1. e4 {[%emt 0:0:0]} c5 {[%emt 0:0:0]} 2. Nf3 {[%emt 0:0:0]} d6 {[%emt 0:0:0]} 3. Bb5+ {[%emt 0:0:0]} Nd7 {[%emt 0:0:0]} 4. c4 {[%emt 0:0:0]} Ngf6 {[%emt 0:0:0]} 5. Nc3 {[%emt 0:0:0]} g6 {[%emt 0:0:0]} 6. h3 {[%emt 0:0:0]} Bg7 {[%emt 0:0:0]} 7. d3 {[%emt 0:0:0]} O-O {[%emt 0:0:0]} 8. Ba4 {[%emt 0:0:0]} Ne8 {[%emt 0:0:0]} 9. O-O {[%emt 0:0:0]} f5 {[%emt 0:0:0]} 10. exf5 {[%emt 0:32:58]} gxf5 {[%emt 0:1:7]} 11. Bg5 {[%emt 0:0:14]} h6 {[%emt 0:5:42]} 12. Bh4 {[%emt 0:0:14]} Ne5 {[%emt 0:5:8]} 13. Nxe5 {[%emt 0:3:52]} dxe5 {[%emt 0:2:23]} 14. Qe2 {[%emt 0:10:2]} Rf7 {[%emt 0:15:43]} 15. Nd5 {[%emt 0:11:30]} Nc7 {[%emt 0:2:47]} 16. f4 {[%emt 0:0:45]} Nxd5 {[%emt 0:5:26]} 17. cxd5 {[%emt 0:2:27]} Qd6 {[%emt 0:7:20]} 18. Rae1 {[%emt 0:3:19]} e6 {[%emt 0:5:43]} 19. Bb3 {[%emt 0:1:47]} exd5 {[%emt 0:1:49]} 20. fxe5 {[%emt 0:1:17]} Qe6 {[%emt 0:0:41]} 21. Rf4 {[%emt 0:8:14]} b5 {[%emt 0:3:42]} 22. Qf3 {[%emt 0:0:26]} Bb7 {[%emt 0:0:30]} 23. d4 {[%emt 0:0:3]} c4 {[%emt 0:5:15]} 24. Bc2 {[%emt 0:0:5]} Raf8 {[%emt 0:0:21]} 25. Qh5 {[%emt 0:4:17]} Bc6 {[%emt 0:9:20]} 26. Ref1 {[%emt 0:1:29]} Bd7 {[%emt 0:4:7]} 27. Be1 {[%emt 0:5:34]} Qb6 {[%emt 0:2:43]} 28. Kh1 {[%emt 0:1:56]} a5 {[%emt 0:1:18]} 29. R1f3 {[%emt 0:6:46]} b4 {[%emt 0:4:55]} 30. Rg3 {[%emt 0:0:5]} Be8 {[%emt 0:1:34]} 31. Bd2 {[%emt 0:0:51]} Qe6 {[%emt 0:9:27]} 32. Qf3 {[%emt 0:0:59]} Kh8 {[%emt 0:2:20]} 33. Rh4 {[%emt 0:0:43]} Rc7 {[%emt 0:2:52]} 34. Rxg7 {[%emt 0:1:48]} Kxg7 {[%emt 0:0:14]} 35. Bxh6+ {[%emt 0:0:15]} Qxh6 {[%emt 0:0:58]} 36. Rxh6 {[%emt 0:0:3]} Kxh6 {[%emt 0:0:5]} 37. Qxd5 {[%emt 0:0:35]} Rcf7 {[%emt 0:3:33]} 38. Qd6+ {[%emt 0:3:30]} Kh7 {[%emt 0:1:2]} 39. e6 {[%emt 0:0:4]} Rf6 {[%emt 0:0:20]} 40. d5 {[%emt 0:0:10]} 1-0

[Event "56th Biel Festival MTO 2023"]
[White "Samadov,Read"]
[Black "Lohia,Sohum"]
[Site "Biel"]
[Round "2.22"]
[Annotator "RC"]
[Result "1-0"]
[Date "2023.07.19"]
[WhiteElo "2482"]
[BlackElo "2247"]
[PlyCount "89"]
[TimeControl "60"]

1. d4 {[%emt 0:0:0]} Nf6 {[%emt 0:0:0]} 2. c4 {[%emt 0:0:0]} e6 {[%emt 0:0:0]} 3. Nf3 {[%emt 0:0:0]} d5 {[%emt 0:0:0]} 4. g3 {[%emt 0:0:0]} Be7 {[%emt 0:0:0]} 5. Bg2 {[%emt 0:0:0]} O-O {[%emt 0:0:0]} 6. O-O {[%emt 0:0:0]} dxc4 {[%emt 0:0:0]} 7. Qc2 {[%emt 0:0:0]} a6 {[%emt 0:0:0]} 8. a4 {[%emt 0:0:0]} Bd7 {[%emt 0:0:0]} 9. Rd1 {[%emt 0:0:0]} Bc6 {[%emt 0:0:0]} 10. Bg5 {[%emt 0:0:0]} b5 {[%emt 0:4:45]} 11. Bxf6 {[%emt 0:0:0]} Bxf6 {[%emt 0:0:21]} 12. Nc3 {[%emt 0:0:0]} b4 {[%emt 0:11:36]} 13. Ne4 {[%emt 0:0:0]} Bxe4 {[%emt 0:4:23]} 14. Qxe4 {[%emt 0:0:0]} Nd7 {[%emt 0:2:5]} 15. Nd2 {[%emt 0:19:53]} Qe7 {[%emt 0:10:18]} 16. Nxc4 {[%emt 0:2:39]} c5 {[%emt 0:6:56]} 17. d5 {[%emt 0:8:28]} exd5 {[%emt 0:5:49]} 18. Qxe7 {[%emt 0:6:41]} Bxe7 {[%emt 0:0:5]} 19. Bxd5 {[%emt 0:0:40]} Ra7 {[%emt 0:7:6]} 20. Rd3 {[%emt 0:3:54]} Bf6 {[%emt 0:1:22]} 21. f4 {[%emt 0:2:45]} Rb8 {[%emt 0:13:3]} 22. a5 {[%emt 0:3:49]} Nf8 {[%emt 0:4:17]} 23. Rad1 {[%emt 0:6:8]} Rd7 {[%emt 0:1:43]} 24. e3 {[%emt 0:2:23]} Re7 {[%emt 0:9:49]} 25. b3 {[%emt 0:5:18]} Ne6 {[%emt 0:4:58]} 26. Bxe6 {[%emt 0:2:57]} Rxe6 {[%emt 0:0:24]} 27. Rd6 {[%emt 0:2:32]} Rbe8 {[%emt 0:2:20]} 28. f5 {[%emt 0:1:42]} Rxd6 {[%emt 0:4:13]} 29. Rxd6 {[%emt 0:0:6]} Ra8 {[%emt 0:0:26]} 30. Kf2 {[%emt 0:1:24]} Kf8 {[%emt 0:0:23]} 31. Kf3 {[%emt 0:0:33]} Be7 {[%emt 0:0:31]} 32. Rb6 {[%emt 0:3:0]} Ke8 {[%emt 0:1:29]} 33. Ke4 {[%emt 0:0:31]} Ra7 {[%emt 0:0:47]} 34. Ne5 {[%emt 0:4:58]} Ra8 {[%emt 0:2:3]} 35. Rb7 {[%emt 0:0:40]} Bd8 {[%emt 0:0:56]} 36. Nc4 {[%emt 0:4:25]} Be7 {[%emt 0:0:28]} 37. Nb6 {[%emt 0:2:28]} Rd8 {[%emt 0:0:10]} 38. Ra7 {[%emt 0:0:58]} Rd2 {[%emt 0:0:24]} 39. Rxa6 {[%emt 0:1:20]} Rb2 {[%emt 0:0:47]} 40. Ra8+ {[%emt 0:1:8]} Bd8 {[%emt 0:0:9]} 41. Na4 {[%emt 0:36:16]} Rxb3 {[%emt 0:31:6]} 42. Nxc5 {[%emt 0:0:13]} Ra3 {[%emt 0:0:8]} 43. Nb7 {[%emt 0:0:30]} b3 {[%emt 0:0:8]} 44. Rxd8+ {[%emt 0:0:20]} Ke7 {[%emt 0:0:5]} 45. Rd1 {[%emt 0:0:19]} 1-0

[Event "56th Biel Festival MTO 2023"]
[White "Saraci,Nderim"]
[Black "Eidelman,Gabriel"]
[Site "Biel"]
[Round "2.23"]
[Annotator "RC"]
[Result "1-0"]
[Date "2023.07.19"]
[WhiteElo "2472"]
[BlackElo "2204"]
[PlyCount "119"]
[TimeControl "60"]

1. e4 {[%emt 0:0:0]} c5 {[%emt 0:0:0]} 2. Nf3 {[%emt 0:0:0]} d6 {[%emt 0:0:0]} 3. Bb5+ {[%emt 0:0:0]} Bd7 {[%emt 0:0:0]} 4. Bxd7+ {[%emt 0:0:0]} Nxd7 {[%emt 0:0:0]} 5. O-O {[%emt 0:0:0]} Ngf6 {[%emt 0:0:0]} 6. Qe2 {[%emt 0:0:0]} e6 {[%emt 0:0:0]} 7. c3 {[%emt 0:0:0]} Be7 {[%emt 0:0:0]} 8. d4 {[%emt 0:0:0]} O-O {[%emt 0:0:0]} 9. Rd1 {[%emt 0:10:42]} cxd4 {[%emt 0:25:17]} 10. cxd4 {[%emt 0:0:31]} d5 {[%emt 0:5:21]} 11. e5 {[%emt 0:0:33]} Ne4 {[%emt 0:0:24]} 12. Nbd2 {[%emt 0:2:40]} Nxd2 {[%emt 0:10:9]} 13. Bxd2 {[%emt 0:1:0]} Qb6 {[%emt 0:4:27]} 14. Qd3 {[%emt 0:10:47]} Rfc8 {[%emt 0:17:19]} 15. h4 {[%emt 0:6:14]} Qa6 {[%emt 0:6:4]} 16. Qe3 {[%emt 0:22:30]} Nb6 {[%emt 0:8:42]} 17. b3 {[%emt 0:9:16]} Rc2 {[%emt 0:8:59]} 18. a4 {[%emt 0:0:50]} Nd7 {[%emt 0:0:19]} 19. h5 {[%emt 0:3:47]} h6 {[%emt 0:2:21]} 20. Ne1 {[%emt 0:7:13]} Rcc8 {[%emt 0:4:50]} 21. Rdc1 {[%emt 0:5:13]} Qb6 {[%emt 0:5:47]} 22. Qd3 {[%emt 0:2:18]} f5 {[%emt 0:0:40]} 23. a5 {[%emt 0:2:14]} Qd8 {[%emt 0:0:47]} 24. Qb5 {[%emt 0:1:57]} Rab8 {[%emt 0:0:26]} 25. Rxc8 {[%emt 0:0:46]} Qxc8 {[%emt 0:0:2]} 26. Rc1 {[%emt 0:0:21]} Qd8 {[%emt 0:0:2]} 27. a6 {[%emt 0:1:1]} Nb6 {[%emt 0:1:18]} 28. axb7 {[%emt 0:1:3]} Rxb7 {[%emt 0:0:1]} 29. Nd3 {[%emt 0:1:47]} Qd7 {[%emt 0:1:5]} 30. Qc6 {[%emt 0:6:18]} Kf7 {[%emt 0:0:34]} 31. Qc2 {[%emt 0:2:55]} Rb8 {[%emt 0:0:31]} 32. g4 {[%emt 0:1:5]} Rc8 {[%emt 0:0:32]} 33. Nc5 {[%emt 0:0:46]} Bxc5 {[%emt 0:0:24]} 34. dxc5 {[%emt 0:0:1]} d4 {[%emt 0:0:35]} 35. Qd3 {[%emt 0:1:16]} Nd5 {[%emt 0:0:30]} 36. gxf5 {[%emt 0:0:45]} exf5 {[%emt 0:0:3]} 37. Qxd4 {[%emt 0:1:0]} f4 {[%emt 0:0:54]} 38. Kh2 {[%emt 0:1:24]} Rd8 {[%emt 0:0:30]} 39. e6+ {[%emt 0:1:1]} Qxe6 {[%emt 0:0:11]} 40. Rg1 {[%emt 0:0:43]} Qf6 {[%emt 0:0:48]} 41. Qxf6+ {[%emt 0:0:0]} Kxf6 {[%emt 0:13:48]} 42. Rg6+ {[%emt 0:0:0]} Kf5 {[%emt 0:0:3]} 43. Rxg7 {[%emt 0:0:0]} Ke4 {[%emt 0:6:20]} 44. Kg2 {[%emt 0:0:0]} Rc8 {[%emt 0:9:24]} 45. b4 {[%emt 0:0:0]} Kd3 {[%emt 0:0:24]} 46. Rd7 {[%emt 0:3:33]} Kxd2 {[%emt 0:0:10]} 47. Rxd5+ {[%emt 0:3:9]} Kc3 {[%emt 0:0:2]} 48. Rd6 {[%emt 0:2:50]} Kxb4 {[%emt 0:0:52]} 49. Rxh6 {[%emt 0:0:9]} Kxc5 {[%emt 0:1:32]} 50. Ra6 {[%emt 0:5:57]} Rc7 {[%emt 0:2:19]} 51. Kf3 {[%emt 0:7:29]} Kb5 {[%emt 0:0:30]} 52. Ra1 {[%emt 0:1:11]} a5 {[%emt 0:0:38]} 53. h6 {[%emt 0:0:57]} a4 {[%emt 0:0:28]} 54. Rb1+ {[%emt 0:1:11]} Ka5 {[%emt 0:0:31]} 55. Rh1 {[%emt 0:0:11]} Rh7 {[%emt 0:0:19]} 56. Kxf4 {[%emt 0:0:14]} a3 {[%emt 0:0:6]} 57. Kg5 {[%emt 0:0:45]} Kb4 {[%emt 0:0:31]} 58. Kg6 {[%emt 0:0:23]} Rh8 {[%emt 0:0:54]} 59. h7 {[%emt 0:0:55]} a2 {[%emt 0:0:7]} 60. Kg7 {[%emt 0:0:26]} 1-0